[Event "21è Open International d'Echecs de Menton"]
[Site "Menton, France"]
[Date "2024.10.30"]
[Round "5.3"]
[White "Florian, JACOBS 2225"]
[Black "Louis, AURIBAULT 2108"]
[Result "1/2-1/2"]
[TimeControl "90'+30''/40m + 30'+30''"]
[BlackTitle "FM"]
[WhiteFideId "1018329"]
[BlackFideId "45196591"]
[WhiteElo "2225"]
[BlackElo "2108"]

1. d4 {[%clk 01:30:56]} {[%emt 00:00:02]} Nf6 {[%clk 01:30:48]} {[%emt
00:00:13]} 2. c4 {[%clk 01:31:22]} {[%emt 00:00:04]} e6 {[%clk 01:31:07]}
{[%emt 00:00:10]} 3. Nc3 {[%clk 01:31:47]} {[%emt 00:00:05]} Bb4 {[%clk
01:31:27]} {[%emt 00:00:09]} 4. Qc2 {[%clk 01:32:15]} {[%emt 00:00:04]} d5
{[%clk 01:31:46]} {[%emt 00:00:11]} 5. cxd5 {[%clk 01:32:40]} {[%emt 00:00:05]}
exd5 {[%clk 01:32:07]} {[%emt 00:00:08]} 6. Bg5 {[%clk 01:32:56]} {[%emt
00:00:14]} h6 {[%clk 01:32:14]} {[%emt 00:00:23]} 7. Bh4 {[%clk 01:33:21]}
{[%emt 00:00:04]} Nc6 {[%clk 01:32:26]} {[%emt 00:00:19]} 8. e3 {[%clk
01:33:46]} {[%emt 00:00:05]} g5 {[%clk 01:32:18]} {[%emt 00:00:38]} 9. Bg3
{[%clk 01:34:12]} {[%emt 00:00:04]} h5 {[%clk 01:32:15]} {[%emt 00:00:33]} 10.
Bb5 {[%clk 01:34:34]} {[%emt 00:00:07]} h4 {[%clk 01:31:19]} {[%emt 00:01:26]}
11. Be5 {[%clk 01:35:00]} {[%emt 00:00:04]} Rh6 {[%clk 01:27:19]} {[%emt
00:04:30]} 12. h3 {[%clk 01:22:48]} {[%emt 00:12:40]} Bd7 {[%clk 01:23:19]}
{[%emt 00:04:31]} 13. Bh2 {[%clk 01:11:31]} {[%emt 00:11:46]} Qe7 {[%clk
01:13:24]} {[%emt 00:10:27]} 14. Nge2 {[%clk 01:11:12]} {[%emt 00:00:48]} a6
{[%clk 01:13:25]} {[%emt 00:00:29]} 15. Bxc6 {[%clk 01:03:55]} {[%emt
00:07:47]} Bxc6 {[%clk 01:13:37]} {[%emt 00:00:18]} 16. O-O-O {[%clk 01:04:04]}
{[%emt 00:00:21]} Bb5 {[%clk 01:02:33]} {[%emt 00:11:35]} 17. Kb1 {[%clk
00:42:42]} {[%emt 00:21:51]} Bxe2 {[%clk 00:53:05]} {[%emt 00:09:57]} 18. Nxe2
{[%clk 00:43:00]} {[%emt 00:00:12]} Ne4 {[%clk 00:49:33]} {[%emt 00:04:04]} 19.
Nc1 {[%clk 00:31:06]} {[%emt 00:12:23]} Rc6 {[%clk 00:37:24]} {[%emt 00:12:39]}
20. Qe2 {[%clk 00:31:09]} {[%emt 00:00:27]} Bd6 {[%clk 00:37:25]} {[%emt
00:00:29]} 21. Bxd6 {[%clk 00:29:39]} {[%emt 00:02:00]} Qxd6 {[%clk 00:34:48]}
{[%emt 00:03:07]} 22. Nd3 {[%clk 00:29:33]} {[%emt 00:00:35]} O-O-O {[%clk
00:28:11]} {[%emt 00:07:08]} 23. Rc1 {[%clk 00:27:06]} {[%emt 00:02:58]} f6
{[%clk 00:28:13]} {[%emt 00:00:27]} 24. Rxc6 {[%clk 00:24:19]} {[%emt
00:03:16]} Qxc6 {[%clk 00:28:33]} {[%emt 00:00:10]} 25. Rc1 {[%clk 00:24:41]}
{[%emt 00:00:07]} Qb5 {[%clk 00:26:37]} {[%emt 00:02:26]} 26. Qc2 {[%clk
00:24:21]} {[%emt 00:00:50]} Qc4 {[%clk 00:26:47]} {[%emt 00:00:21]} 27. Qd1
{[%clk 00:23:09]} {[%emt 00:01:42]} Qb5 {[%clk 00:27:00]} {[%emt 00:00:17]} 28.
Qc2 {[%clk 00:23:34]} {[%emt 00:00:05]} Qc4 {[%clk 00:25:59]} {[%emt 00:01:31]}
29. Qd1 {[%clk 00:21:54]} {[%emt 00:02:09]} Qb5 {[%clk 00:26:04]} {[%emt
00:00:25]} 1/2-1/2

[Event "21è Open International d'Echecs de Menton"]
[Site "Menton, France"]
[Date "2024.10.31"]
[Round "6.1"]
[White "Louis, AURIBAULT 2108"]
[Black "Jean-Marc, DEGRAEVE 2479"]
[Result "0-1"]
[TimeControl "90'+30''/40m + 30'+30''"]
[WhiteTitle "FM"]
[BlackTitle "GM"]
[WhiteFideId "45196591"]
[BlackFideId "600270"]
[WhiteElo "2108"]
[BlackElo "2479"]

1. Nf3 {[%clk 01:30:55]} {[%emt 00:00:04]} g6 {[%clk 01:30:42]} {[%emt
00:00:19]} 2. c4 {[%clk 01:30:36]} {[%emt 00:00:49]} Bg7 {[%clk 01:31:04]}
{[%emt 00:00:07]} 3. e4 {[%clk 01:28:06]} {[%emt 00:03:00]} d6 {[%clk
01:29:16]} {[%emt 00:02:18]} 4. d4 {[%clk 01:28:01]} {[%emt 00:00:35]} Nf6
{[%clk 01:29:17]} {[%emt 00:00:28]} 5. Nc3 {[%clk 01:28:25]} {[%emt 00:00:06]}
O-O {[%clk 01:29:39]} {[%emt 00:00:09]} 6. h3 {[%clk 01:28:35]} {[%emt
00:00:20]} c5 {[%clk 01:27:38]} {[%emt 00:02:31]} 7. d5 {[%clk 01:28:58]}
{[%emt 00:00:07]} e6 {[%clk 01:27:44]} {[%emt 00:00:24]} 8. Bd3 {[%clk
01:29:16]} {[%emt 00:00:12]} Na6 {[%clk 01:27:14]} {[%emt 00:01:00]} 9. O-O
{[%clk 01:28:45]} {[%emt 00:01:00]} Nc7 {[%clk 01:27:31]} {[%emt 00:00:14]} 10.
a4 {[%clk 01:28:06]} {[%emt 00:01:09]} Na6 {[%clk 01:27:10]} {[%emt 00:00:51]}
11. Bg5 {[%clk 01:26:34]} {[%emt 00:02:01]} Nb4 {[%clk 01:27:07]} {[%emt
00:00:34]} 12. Bb1 {[%clk 01:26:02]} {[%emt 00:01:02]} h6 {[%clk 01:27:11]}
{[%emt 00:00:26]} 13. Be3 {[%clk 01:25:02]} {[%emt 00:01:29]} e5 {[%clk
01:25:18]} {[%emt 00:02:23]} 14. Ne1 {[%clk 01:18:52]} {[%emt 00:06:39]} Nh5
{[%clk 01:22:36]} {[%emt 00:03:12]} 15. Nd3 {[%clk 01:12:29]} {[%emt 00:06:54]}
Nxd3 {[%clk 01:21:46]} {[%emt 00:01:20]} 16. Bxd3 {[%clk 01:12:31]} {[%emt
00:00:28]} Nf4 {[%clk 01:22:10]} {[%emt 00:00:06]} 17. Bxf4 {[%clk 00:56:19]}
{[%emt 00:16:42]} exf4 {[%clk 01:22:37]} {[%emt 00:00:03]} 18. Qf3 {[%clk
00:56:48]} Be5 {[%clk 01:22:07]} {[%emt 00:01:00]} 19. Ne2 {[%clk 00:57:00]}
{[%emt 00:00:18]} Qh4 {[%clk 01:21:14]} {[%emt 00:01:24]} 20. Ra3 {[%clk
00:55:55]} {[%emt 00:01:36]} h5 {[%clk 01:20:37]} {[%emt 00:01:07]} 21. g3
{[%clk 00:54:48]} {[%emt 00:01:37]} fxg3 {[%clk 01:20:22]} {[%emt 00:00:45]} 22.
fxg3 {[%clk 00:52:49]} {[%emt 00:02:29]} Qxh3 {[%clk 01:20:43]} {[%emt
00:00:09]} 23. Kf2 {[%clk 00:52:32]} {[%emt 00:00:46]} Bg4 {[%clk 01:18:48]}
{[%emt 00:02:25]} 24. Rh1 {[%clk 00:49:28]} {[%emt 00:03:35]} Bxf3 {[%clk
01:17:24]} {[%emt 00:01:53]} 25. Rxh3 {[%clk 00:49:56]} {[%emt 00:00:01]} Bxe2
{[%clk 01:16:22]} {[%emt 00:01:33]} 26. Bxe2 {[%clk 00:50:23]} {[%emt
00:00:02]} Bxb2 {[%clk 01:15:06]} {[%emt 00:01:47]} 27. Rb3 {[%clk 00:50:10]}
{[%emt 00:00:42]} Bd4+ {[%clk 01:15:21]} {[%emt 00:00:15]} 28. Kf3 {[%clk
00:49:54]} {[%emt 00:00:46]} f5 {[%clk 01:14:47]} {[%emt 00:01:04]} 29. Kf4
{[%clk 00:49:53]} {[%emt 00:00:31]} fxe4+ {[%clk 01:14:56]} {[%emt 00:00:21]}
30. Kg5 {[%clk 00:49:51]} {[%emt 00:00:32]} Rf5+ {[%clk 01:12:16]} {[%emt
00:03:11]} 31. Kxg6 {[%clk 00:50:07]} {[%emt 00:00:14]} Raf8 {[%clk 01:12:40]}
{[%emt 00:00:06]} 32. Rxh5 {[%clk 00:48:36]} {[%emt 00:02:01]} R8f6# {[%emt
00:00:04]} 0-1

[Event "21è Open International d'Echecs de Menton"]
[Site "Menton, France"]
[Date "2024.10.31"]
[Round "6.2"]
[White "Paolo, FORMENTO 2346"]
[Black "Jean-Philippe, DUQUESNOY 2073"]
[Result "1-0"]
[TimeControl "90'+30''/40m + 30'+30''"]
[WhiteTitle "FM"]
[WhiteFideId "861162"]
[BlackFideId "605166"]
[WhiteElo "2346"]
[BlackElo "2073"]

1. Nf3 {[%clk 01:30:46]} {[%emt 00:00:14]} Nf6 {[%clk 01:30:42]} {[%emt
00:00:18]} 2. c4 {[%clk 01:30:59]} {[%emt 00:00:17]} g6 {[%clk 01:31:07]}
{[%emt 00:00:05]} 3. Nc3 {[%clk 01:31:11]} {[%emt 00:00:18]} Bg7 {[%clk
01:31:29]} {[%emt 00:00:09]} 4. e4 {[%clk 01:30:08]} {[%emt 00:01:34]} e5
{[%clk 01:31:54]} {[%emt 00:00:05]} 5. d3 {[%clk 01:10:48]} {[%emt 00:19:50]}
O-O {[%clk 01:27:35]} {[%emt 00:04:49]} 6. g3 {[%clk 01:05:23]} {[%emt
00:05:56]} c6 {[%clk 01:25:22]} {[%emt 00:02:43]} 7. Bg2 {[%clk 01:05:18]}
{[%emt 00:00:35]} d5 {[%clk 01:24:40]} {[%emt 00:01:12]} 8. exd5 {[%clk
01:02:29]} {[%emt 00:03:19]} cxd5 {[%clk 01:24:44]} {[%emt 00:00:26]} 9. Bg5
{[%clk 01:00:23]} {[%emt 00:02:37]} Qa5 {[%clk 01:11:49]} {[%emt 00:13:25]} 10.
Bxf6 {[%clk 00:50:42]} {[%emt 00:10:11]} Bxf6 {[%clk 01:12:15]} {[%emt
00:00:04]} 11. cxd5 {[%clk 00:49:14]} {[%emt 00:01:58]} Na6 {[%clk 00:54:58]}
{[%emt 00:17:46]} 12. O-O {[%clk 00:38:50]} {[%emt 00:10:55]} Qb6 {[%clk
00:49:40]} {[%emt 00:05:48]} 13. Qd2 {[%clk 00:14:13]} {[%emt 00:25:07]} Bd7
{[%clk 00:45:32]} {[%emt 00:04:38]} 14. Rfe1 {[%clk 00:14:28]} {[%emt
00:00:16]} Rfe8 {[%clk 00:45:30]} {[%emt 00:00:31]} 15. Re2 {[%clk 00:14:07]}
{[%emt 00:00:52]} Bg7 {[%clk 00:41:45]} {[%emt 00:04:15]} 16. Rae1 {[%clk
00:14:27]} {[%emt 00:00:10]} Qd6 {[%clk 00:35:46]} {[%emt 00:06:29]} 17. d4
{[%clk 00:14:00]} {[%emt 00:00:57]} exd4 {[%clk 00:35:39]} {[%emt 00:00:37]} 18.
Rxe8+ {[%clk 00:14:14]} {[%emt 00:00:17]} Bxe8 {[%clk 00:27:26]} {[%emt
00:08:43]} 19. Nxd4 {[%clk 00:14:42]} {[%emt 00:00:01]} Nc7 {[%clk 00:26:58]}
{[%emt 00:00:57]} 20. Nb3 {[%clk 00:12:17]} {[%emt 00:02:56]} Bb5 {[%clk
00:14:54]} {[%emt 00:12:34]} 21. Nxb5 {[%clk 00:06:21]} {[%emt 00:06:27]} Nxb5
{[%clk 00:15:18]} {[%emt 00:00:05]} 22. a4 {[%clk 00:06:06]} {[%emt 00:00:45]}
Nc7 {[%clk 00:15:22]} {[%emt 00:00:26]} 23. Na5 {[%clk 00:06:21]} {[%emt
00:00:16]} Bh6 {[%clk 00:07:22]} {[%emt 00:08:30]} 24. Qxh6 {[%clk 00:05:38]}
{[%emt 00:01:12]} Qb4 {[%clk 00:07:46]} {[%emt 00:00:05]} 25. Re4 {[%clk
00:04:12]} {[%emt 00:01:57]} Qxa5 {[%clk 00:08:10]} {[%emt 00:00:06]} 26. Rh4
{[%clk 00:04:20]} {[%emt 00:00:22]} Qe1+ {[%clk 00:07:43]} {[%emt 00:00:57]} 27.
Bf1 {[%clk 00:04:49]} {[%emt 00:00:01]} Qe5 {[%clk 00:07:24]} {[%emt 00:00:49]}
28. Qxh7+ {[%clk 00:04:22]} {[%emt 00:00:58]} Kf8 {[%clk 00:07:49]} {[%emt
00:00:05]} 29. d6 {[%clk 00:02:28]} {[%emt 00:02:25]} Qxd6 {[%clk 00:07:42]}
{[%emt 00:00:37]} 30. Qh8+ {[%clk 00:02:19]} {[%emt 00:00:39]} Ke7 {[%clk
00:08:06]} {[%emt 00:00:05]} 31. Re4+ {[%clk 00:02:43]} {[%emt 00:00:07]} Kd7
{[%clk 00:08:11]} {[%emt 00:00:25]} 32. Bh3+ {[%clk 00:02:06]} {[%emt
00:01:08]} f5 {[%clk 00:07:30]} {[%emt 00:01:11]} 33. Qg7+ {[%clk 00:02:26]}
{[%emt 00:00:09]} Kc6 {[%clk 00:05:51]} {[%emt 00:02:08]} 34. Qc3+ {[%clk
00:02:46]} {[%emt 00:00:10]} Kd7 {[%clk 00:05:12]} {[%emt 00:01:09]} 35. Rd4
{[%clk 00:03:05]} {[%emt 00:00:11]} Nd5 {[%clk 00:05:34]} {[%emt 00:00:08]} 36.
Qd2 {[%clk 00:03:16]} {[%emt 00:00:20]} 1-0

[Event "21è Open International d'Echecs de Menton"]
[Site "Menton, France"]
[Date "2024.10.31"]
[Round "6.3"]
[White "David, LACAN-RUS 2257"]
[Black "Savva, SUSTOV 2173"]
[Result "1-0"]
[TimeControl "90'+30''/40m + 30'+30''"]
[WhiteTitle "FM"]
[WhiteFideId "651023075"]
[BlackFideId "13908715"]
[WhiteElo "2257"]
[BlackElo "2173"]

1. d4 {[%clk 01:30:58]} {[%emt 00:00:01]} Nf6 {[%clk 01:30:48]} {[%emt
00:00:13]} 2. c4 {[%clk 01:31:22]} {[%emt 00:00:06]} e6 {[%clk 01:31:16]}
{[%emt 00:00:02]} 3. Nc3 {[%clk 01:31:45]} {[%emt 00:00:07]} Bb4 {[%clk
01:31:42]} {[%emt 00:00:05]} 4. f3 {[%clk 01:32:10]} {[%emt 00:00:05]} d5
{[%clk 01:31:14]} {[%emt 00:00:57]} 5. a3 {[%clk 01:32:33]} {[%emt 00:00:07]}
Bxc3+ {[%clk 01:31:41]} {[%emt 00:00:03]} 6. bxc3 {[%clk 01:32:55]} {[%emt
00:00:07]} c5 {[%clk 01:31:52]} {[%emt 00:00:20]} 7. cxd5 {[%clk 01:33:17]}
{[%emt 00:00:08]} exd5 {[%clk 01:32:16]} {[%emt 00:00:06]} 8. e3 {[%clk
01:33:41]} {[%emt 00:00:06]} c4 {[%clk 01:31:50]} {[%emt 00:00:56]} 9. g4
{[%clk 01:34:03]} {[%emt 00:00:08]} O-O {[%clk 01:31:33]} {[%emt 00:00:48]} 10.
Ne2 {[%clk 01:33:57]} {[%emt 00:00:34]} Nc6 {[%clk 01:31:41]} {[%emt 00:00:23]}
11. Bg2 {[%clk 01:33:18]} {[%emt 00:01:09]} Na5 {[%clk 01:30:59]} {[%emt
00:01:12]} 12. O-O {[%clk 01:32:28]} {[%emt 00:01:20]} Nb3 {[%clk 01:29:28]}
{[%emt 00:02:02]} 13. Ra2 {[%clk 01:31:59]} {[%emt 00:00:58]} b5 {[%clk
01:29:13]} {[%emt 00:00:46]} 14. Ng3 {[%clk 01:28:41]} {[%emt 00:03:48]} a5
{[%clk 01:26:46]} {[%emt 00:02:58]} 15. e4 {[%clk 01:20:54]} {[%emt 00:08:16]}
Nxc1 {[%clk 01:08:26]} {[%emt 00:18:50]} 16. Qxc1 {[%clk 01:21:23]} {[%emt
00:00:01]} Ra6 {[%clk 01:08:22]} {[%emt 00:00:34]} 17. e5 {[%clk 01:10:28]}
{[%emt 00:11:24]} Ne8 {[%clk 01:07:35]} {[%emt 00:01:16]} 18. f4 {[%clk
01:10:50]} {[%emt 00:00:09]} Nc7 {[%clk 00:57:46]} {[%emt 00:10:19]} 19. f5
{[%clk 01:05:48]} {[%emt 00:05:31]} Kh8 {[%clk 00:34:11]} {[%emt 00:24:05]} 20.
Nh5 {[%clk 00:58:15]} {[%emt 00:08:03]} Qh4 {[%clk 00:20:06]} {[%emt 00:14:35]}
21. Qf4 {[%clk 00:51:46]} {[%emt 00:06:59]} g5 {[%clk 00:08:37]} {[%emt
00:12:00]} 22. Qf3 {[%clk 00:46:57]} {[%emt 00:05:19]} Bb7 {[%clk 00:07:16]}
{[%emt 00:01:51]} 23. Bh1 {[%clk 00:42:48]} {[%emt 00:04:39]} Ne8 {[%clk
00:02:34]} {[%emt 00:05:13]} 24. Rg2 {[%clk 00:40:19]} {[%emt 00:02:58]} Rh6
{[%clk 00:01:59]} {[%emt 00:01:05]} 25. Rg3 {[%clk 00:37:22]} {[%emt 00:03:26]}
Rxh5 {[%clk 00:01:31]} {[%emt 00:00:59]} 26. gxh5 {[%clk 00:37:51]} {[%emt
00:00:01]} Ng7 {[%clk 00:00:59]} {[%emt 00:01:02]} 27. h6 {[%clk 00:34:45]}
{[%emt 00:03:35]} Qxh6 {[%clk 00:00:38]} {[%emt 00:00:51]} 28. Rh3 {[%clk
00:35:06]} {[%emt 00:00:08]} g4 {[%clk 00:00:38]} {[%emt 00:00:31]} 29. Rxh6
{[%clk 00:26:12]} {[%emt 00:09:24]} gxf3 {[%clk 00:01:08]} {[%emt 00:00:01]} 30.
Rb6 {[%clk 00:26:19]} {[%emt 00:00:23]} Bc8 {[%clk 00:00:46]} {[%emt 00:00:52]}
31. Rxb5 {[%clk 00:25:25]} {[%emt 00:01:24]} Nxf5 {[%clk 00:00:37]} {[%emt
00:00:39]} 32. Rxf3 {[%clk 00:25:14]} {[%emt 00:00:40]} Nh4 {[%clk 00:00:49]}
{[%emt 00:00:18]} 33. Rf6 {[%clk 00:24:55]} {[%emt 00:00:49]} Bh3 {[%clk
00:00:35]} {[%emt 00:00:45]} 34. Bxd5 {[%clk 00:24:13]} {[%emt 00:01:12]} a4
{[%clk 00:00:56]} {[%emt 00:00:09]} 35. Rb7 {[%clk 00:23:13]} {[%emt 00:01:30]}
Rg8+ {[%clk 00:01:07]} {[%emt 00:00:19]} 36. Kf2 {[%clk 00:23:42]} Bg2 {[%clk
00:01:30]} {[%emt 00:00:07]} 37. Rfxf7 {[%clk 00:23:49]} {[%emt 00:00:22]} 1-0

[Event "21è Open International d'Echecs de Menton"]
[Site "Menton, France"]
[Date "2024.10.31"]
[Round "7.1"]
[White "Jean-Marc, DEGRAEVE 2479"]
[Black "Fabien, FORGUES 2199"]
[Result "1-0"]
[TimeControl "90'+30''/40m + 30'+30''"]
[WhiteTitle "GM"]
[WhiteFideId "600270"]
[BlackFideId "634662"]
[WhiteElo "2479"]
[BlackElo "2199"]

1. e4 {[%clk 01:30:57]} {[%emt 00:00:03]} e5 {[%clk 01:30:27]} {[%emt
00:00:33]} 2. Bc4 {[%clk 01:31:15]} {[%emt 00:00:12]} Nf6 {[%clk 01:30:43]}
{[%emt 00:00:14]} 3. d3 {[%clk 01:31:39]} {[%emt 00:00:07]} Bc5 {[%clk
01:30:27]} {[%emt 00:00:45]} 4. Nf3 {[%clk 01:32:01]} {[%emt 00:00:08]} Nc6
{[%clk 01:30:29]} {[%emt 00:00:29]} 5. O-O {[%clk 01:32:20]} {[%emt 00:00:11]}
d6 {[%clk 01:27:48]} {[%emt 00:03:11]} 6. c3 {[%clk 01:32:37]} {[%emt
00:00:14]} a6 {[%clk 01:28:03]} {[%emt 00:00:15]} 7. Nbd2 {[%clk 01:32:33]}
{[%emt 00:00:33]} Ba7 {[%clk 01:26:37]} {[%emt 00:01:56]} 8. Bb3 {[%clk
01:32:40]} {[%emt 00:00:23]} O-O {[%clk 01:26:09]} {[%emt 00:00:57]} 9. h3
{[%clk 01:33:06]} {[%emt 00:00:05]} Be6 {[%clk 01:22:31]} {[%emt 00:04:08]} 10.
Re1 {[%clk 01:33:14]} {[%emt 00:00:22]} Re8 {[%clk 01:19:23]} {[%emt 00:03:38]}
11. Nf1 {[%clk 01:33:20]} {[%emt 00:00:23]} h6 {[%clk 01:18:47]} {[%emt
00:01:07]} 12. Be3 {[%clk 01:31:24]} {[%emt 00:02:26]} d5 {[%clk 01:14:12]}
{[%emt 00:05:05]} 13. Bxa7 {[%clk 01:30:19]} {[%emt 00:01:35]} Rxa7 {[%clk
01:13:47]} {[%emt 00:00:54]} 14. Qc2 {[%clk 01:21:15]} {[%emt 00:09:35]} Ra8
{[%clk 00:44:52]} {[%emt 00:29:26]} 15. Rad1 {[%clk 01:21:19]} {[%emt
00:00:26]} Qd7 {[%clk 00:44:58]} {[%emt 00:00:24]} 16. Ne3 {[%clk 01:08:37]}
{[%emt 00:13:11]} Rad8 {[%clk 00:44:19]} {[%emt 00:01:09]} 17. c4 {[%clk
00:52:51]} {[%emt 00:16:16]} d4 {[%clk 00:17:27]} {[%emt 00:27:22]} 18. Nd5
{[%clk 00:53:03]} {[%emt 00:00:18]} Nh7 {[%clk 00:17:53]} {[%emt 00:00:05]} 19.
Ba4 {[%clk 00:52:45]} {[%emt 00:00:49]} f6 {[%clk 00:15:49]} {[%emt 00:02:34]}
20. Qd2 {[%clk 00:51:30]} {[%emt 00:01:45]} Qc8 {[%clk 00:14:44]} {[%emt
00:01:35]} 21. Nb4 {[%clk 00:49:37]} {[%emt 00:02:23]} Bd7 {[%clk 00:10:50]}
{[%emt 00:04:25]} 22. Nxc6 {[%clk 00:49:43]} {[%emt 00:00:23]} bxc6 {[%clk
00:11:11]} {[%emt 00:00:10]} 23. c5 {[%clk 00:49:36]} {[%emt 00:00:37]} Nf8
{[%clk 00:09:57]} {[%emt 00:01:43]} 24. Rc1 {[%clk 00:48:12]} {[%emt 00:01:54]}
Ng6 {[%clk 00:09:45]} {[%emt 00:00:43]} 25. Kh2 {[%clk 00:47:15]} {[%emt
00:01:27]} Nf4 {[%clk 00:08:23]} {[%emt 00:01:52]} 26. Ng1 {[%clk 00:46:40]}
{[%emt 00:01:04]} g5 {[%clk 00:07:23]} {[%emt 00:01:31]} 27. Bb3+ {[%clk
00:42:05]} {[%emt 00:05:05]} Kh7 {[%clk 00:03:21]} {[%emt 00:04:29]} 28. Bc4
{[%clk 00:42:16]} {[%emt 00:00:22]} Re7 {[%clk 00:03:48]} {[%emt 00:00:03]} 29.
Qa5 {[%clk 00:41:49]} {[%emt 00:00:57]} Rf8 {[%clk 00:04:08]} {[%emt 00:00:10]}
30. Qxa6 {[%clk 00:41:51]} {[%emt 00:00:28]} Qe8 {[%clk 00:04:32]} {[%emt
00:00:06]} 31. Qa4 {[%clk 00:41:53]} {[%emt 00:00:29]} Rg7 {[%clk 00:04:20]}
{[%emt 00:00:42]} 32. Qd1 {[%clk 00:41:53]} {[%emt 00:00:29]} g4 {[%clk
00:02:07]} {[%emt 00:02:44]} 33. g3 {[%clk 00:39:33]} {[%emt 00:02:50]} Nxh3
{[%clk 00:01:49]} {[%emt 00:00:47]} 34. Nxh3 {[%clk 00:39:56]} {[%emt
00:00:06]} Qh5 {[%clk 00:01:24]} {[%emt 00:00:55]} 35. Rh1 {[%clk 00:39:59]}
{[%emt 00:00:27]} f5 {[%clk 00:00:32]} {[%emt 00:01:23]} 36. Rc2 {[%clk
00:39:15]} {[%emt 00:01:14]} Rg5 {[%clk 00:00:33]} {[%emt 00:00:29]} 37. Kg1
{[%clk 00:38:18]} {[%emt 00:01:27]} gxh3 {[%clk 00:00:45]} {[%emt 00:00:17]} 38.
Qxh5 {[%clk 00:38:40]} {[%emt 00:00:07]} Rxh5 {[%clk 00:01:14]} {[%emt
00:00:02]} 39. Kh2 {[%clk 00:27:57]} {[%emt 00:11:12]} Rg5 {[%clk 00:00:42]}
{[%emt 00:01:02]} 40. Rg1 {[%clk 00:28:13]} {[%emt 00:00:14]} f4 {[%clk
00:00:33]} {[%emt 00:00:39]} 41. gxf4 {[%clk 00:28:30]} {[%emt 00:00:13]} Rxg1
{[%clk 00:17:47]} {[%emt 00:13:16]} 42. Kxg1 {[%clk 00:58:46]} {[%emt
00:00:14]} Rxf4 {[%clk 00:18:02]} {[%emt 00:00:16]} 43. Kh2 {[%clk 00:46:16]}
{[%emt 00:13:00]} Rg4 {[%clk 00:11:02]} {[%emt 00:07:29]} 44. f3 {[%clk
00:46:18]} {[%emt 00:00:29]} Rf4 {[%clk 00:11:25]} {[%emt 00:00:06]} 45. Rf2
{[%clk 00:45:51]} {[%emt 00:00:57]} Kg6 {[%clk 00:05:11]} {[%emt 00:06:45]} 46.
Rf1 {[%clk 00:44:33]} {[%emt 00:01:47]} Kg5 {[%clk 00:01:17]} {[%emt 00:04:25]}
47. Rg1+ {[%clk 00:44:19]} {[%emt 00:00:44]} Kf6 {[%clk 00:01:47]} {[%emt
00:00:01]} 48. Rf1 {[%clk 00:40:58]} {[%emt 00:03:51]} Kg5 {[%clk 00:02:11]}
{[%emt 00:00:06]} 49. a4 {[%clk 00:41:18]} {[%emt 00:00:09]} Bg4 {[%clk
00:00:38]} {[%emt 00:02:04]} 50. a5 {[%clk 00:41:16]} {[%emt 00:00:32]} Bxf3
{[%clk 00:01:01]} {[%emt 00:00:07]} 51. a6 {[%clk 00:41:39]} {[%emt 00:00:07]}
Rf8 {[%clk 00:00:58]} {[%emt 00:00:33]} 52. a7 {[%clk 00:41:41]} {[%emt
00:00:27]} Kf4 {[%clk 00:00:50]} {[%emt 00:00:38]} 53. Ra1 {[%clk 00:41:50]}
{[%emt 00:00:21]} Ra8 {[%clk 00:01:13]} {[%emt 00:00:07]} 54. b4 {[%clk
00:42:05]} {[%emt 00:00:16]} Bxe4 {[%clk 00:00:32]} {[%emt 00:01:11]} 55. dxe4
{[%clk 00:41:29]} {[%emt 00:01:05]} Kxe4 {[%clk 00:00:59]} {[%emt 00:00:04]} 56.
Ra3 {[%clk 00:32:01]} {[%emt 00:09:59]} Kf4 {[%clk 00:01:15]} {[%emt 00:00:13]}
57. b5 {[%clk 00:32:02]} {[%emt 00:00:29]} cxb5 {[%clk 00:01:27]} {[%emt
00:00:19]} 58. Bxb5 {[%clk 00:31:54]} {[%emt 00:00:38]} e4 {[%clk 00:01:20]}
{[%emt 00:00:36]} 59. Bc6 {[%clk 00:32:20]} {[%emt 00:00:04]} d3 {[%clk
00:00:31]} {[%emt 00:01:20]} 60. Bxa8 {[%clk 00:32:40]} {[%emt 00:00:10]} d2
{[%clk 00:00:54]} {[%emt 00:00:07]} 61. Ra1 {[%clk 00:32:54]} {[%emt 00:00:15]}
e3 {[%clk 00:01:20]} {[%emt 00:00:04]} 62. Bf3 {[%clk 00:33:15]} {[%emt
00:00:09]} 1-0

[Event "21è Open International d'Echecs de Menton"]
[Site "Menton, France"]
[Date "2024.10.31"]
[Round "7.2"]
[White "Florian, JACOBS 2225"]
[Black "Paolo, FORMENTO 2346"]
[Result "1/2-1/2"]
[TimeControl "90'+30''/40m + 30'+30''"]
[BlackTitle "FM"]
[WhiteFideId "1018329"]
[BlackFideId "861162"]
[WhiteElo "2225"]
[BlackElo "2346"]

1. d4 {[%clk 01:30:57]} {[%emt 00:00:02]} Nf6 {[%clk 01:26:29]} {[%emt
00:04:32]} 2. c4 {[%clk 01:31:20]} {[%emt 00:00:06]} e6 {[%clk 01:26:27]}
{[%emt 00:00:32]} 3. Nc3 {[%clk 01:31:43]} {[%emt 00:00:07]} Bb4 {[%clk
01:26:44]} {[%emt 00:00:14]} 4. Qc2 {[%clk 01:32:07]} {[%emt 00:00:06]} O-O
{[%clk 01:25:38]} {[%emt 00:01:36]} 5. Nf3 {[%clk 01:31:29]} {[%emt 00:01:07]}
c5 {[%clk 01:20:48]} {[%emt 00:05:21]} 6. dxc5 {[%clk 01:31:50]} {[%emt
00:00:09]} Bxc5 {[%clk 01:18:44]} {[%emt 00:02:34]} 7. Bg5 {[%clk 01:31:09]}
{[%emt 00:01:11]} Be7 {[%clk 01:16:03]} {[%emt 00:03:11]} 8. Rd1 {[%clk
01:26:07]} {[%emt 00:05:32]} b6 {[%clk 01:05:17]} {[%emt 00:11:17]} 9. e4
{[%clk 01:21:55]} {[%emt 00:04:42]} Bb7 {[%clk 01:01:31]} {[%emt 00:04:16]} 10.
Be2 {[%clk 01:18:48]} {[%emt 00:03:37]} Na6 {[%clk 00:48:03]} {[%emt 00:13:58]}
11. e5 {[%clk 01:11:40]} {[%emt 00:07:38]} Ne8 {[%clk 00:42:47]} {[%emt
00:05:46]} 12. h4 {[%clk 01:01:54]} {[%emt 00:10:16]} f6 {[%clk 00:38:15]}
{[%emt 00:05:02]} 13. exf6 {[%clk 00:56:05]} {[%emt 00:06:18]} Nxf6 {[%clk
00:38:22]} {[%emt 00:00:24]} 14. h5 {[%clk 00:50:48]} {[%emt 00:05:46]} Ng4
{[%clk 00:31:05]} {[%emt 00:07:47]} 15. Bxe7 {[%clk 00:32:51]} {[%emt
00:18:28]} Qxe7 {[%clk 00:31:28]} {[%emt 00:00:07]} 16. Ne4 {[%clk 00:29:49]}
{[%emt 00:03:32]} h6 {[%clk 00:16:27]} {[%emt 00:15:32]} 17. Nd6 {[%clk
00:27:54]} {[%emt 00:02:24]} Bc6 {[%clk 00:16:49]} {[%emt 00:00:08]} 18. Qg6
{[%clk 00:26:28]} {[%emt 00:01:56]} Bxf3 {[%clk 00:12:12]} {[%emt 00:05:07]} 19.
gxf3 {[%clk 00:25:33]} {[%emt 00:01:25]} Ne5 {[%clk 00:12:22]} {[%emt
00:00:20]} 20. Qg3 {[%clk 00:21:57]} {[%emt 00:04:06]} Qg5 {[%clk 00:11:55]}
{[%emt 00:00:57]} 1/2-1/2